fUST/lending_fUST_20250625
["ID","MTS","AMOUNT","RATE_DAILY","PERIOD"]
[367447649,1750800653301,-620.12,0.00017534,2]
[367447651,1750800653310,-460.0,0.00017534,2]
[367447653,1750800653320,-845.1,0.00017534,2]
[367447655,1750800653329,-460.0,0.00017534,2]
[367447657,1750800653338,-460.0,0.00017534,2]
[367447659,1750800653350,-460.0,0.00017534,2]
[367447661,1750800653359,-460.0,0.00017534,2]
[367447663,1750800653368,-460.0,0.00017534,2]
[367447665,1750800653377,-998.73,0.00017534,2]
[367447667,1750800653387,-545.98534288,0.00017534,2]
[367447669,1750800653395,-460.0,0.00017534,2]
[367447671,1750800653405,-460.0,0.00017534,2]
[367447673,1750800653415,-421.18108586,0.00017534,2]
[367447675,1750800653424,-460.0,0.00017534,2]
[367447677,1750800653433,-460.0,0.00017534,2]
[367447679,1750800653443,-598.32210142,0.00017534,2]
[367447681,1750800653452,-469.34,0.00017534,2]
[367447683,1750800653461,-460.0,0.00017534,2]
[367447685,1750800653470,-460.0,0.00017534,2]
[367447687,1750800653479,-460.0,0.00017534,2]
[367447689,1750800653490,-1005.1,0.00017534,2]
[367447691,1750800653499,-864.57,0.00017534,2]
[367447693,1750800653508,-1059.31,0.00017534,2]
[367447695,1750800653517,-524.11,0.00017534,2]
[367447697,1750800653527,-460.0,0.00017534,2]
[367447699,1750800653536,-460.0,0.00017534,2]
[367447701,1750800653545,-460.0,0.00017534,2]
[367447703,1750800653554,-460.0,0.00017534,2]
[367447705,1750800653563,-290.0,0.00017534,2]
[367447707,1750800653573,-529.81,0.00017534,2]
[367447709,1750800653582,-460.0,0.00017534,2]
[367447711,1750800653591,-460.0,0.00017534,2]
[367447713,1750800653599,-320.529606,0.00017534,2]
[367447715,1750800653609,-1500.0,0.00017568,2]
[367447717,1750800653618,-151.0,0.00017808,2]
[367447719,1750800653627,-250.55274003,0.00017808,2]
[367447721,1750800653636,-277.710939,0.00017808,2]
[367447723,1750800653646,-151.0,0.00017808,2]
[367447725,1750800653655,-460.0,0.00017808,2]
[367447727,1750800653665,-460.0,0.00017808,2]
[367447729,1750800653675,-460.0,0.00017808,2]
[367447731,1750800653685,-460.0,0.00017808,2]
[367447733,1750800653695,-460.0,0.00017808,2]
[367447735,1750800653704,-568.87,0.00017808,2]
[367447737,1750800653713,-460.0,0.00017808,2]
[367447739,1750800653723,-672.59,0.00017808,2]
[367447741,1750800653732,-460.0,0.00017808,2]
[367447743,1750800653745,-794.1,0.00017808,2]
[367447745,1750800653754,-350.33,0.00017808,2]
[367447747,1750800653763,-2142.64,0.00017808,2]
[367447749,1750800653772,-460.0,0.00017808,2]
[367447750,1750800653781,-460.0,0.00017808,2]
[367447752,1750800653790,-460.0,0.00017808,2]
[367447754,1750800653800,-460.0,0.00017808,2]
[367447756,1750800653809,-994.44,0.00017808,2]
[367447758,1750800653819,-460.0,0.00017808,2]
[367447760,1750800653828,-460.0,0.00017808,2]
[367447762,1750800653837,-1050.8,0.00017808,2]
[367447764,1750800653847,-460.0,0.00017808,2]
[367447766,1750800653856,-568.1,0.00017808,2]
[367447768,1750800653865,-460.0,0.00017808,2]
[367447770,1750800653875,-460.0,0.00017808,2]
[367447772,1750800653884,-540.57,0.00017808,2]
[367447774,1750800653893,-848.23,0.00017808,2]
[367447776,1750800653903,-620.12,0.00017808,2]
[367447778,1750800653912,-460.0,0.00017808,2]
[367447780,1750800653921,-845.1,0.00017808,2]
[367447782,1750800653931,-460.0,0.00017808,2]
[367447784,1750800653940,-460.0,0.00017808,2]
[367447786,1750800653950,-390.0,0.00017808,2]
[367447788,1750800653959,-460.0,0.00017808,2]
[367447790,1750800653968,-460.0,0.00017808,2]
[367447792,1750800653977,-998.73,0.00017808,2]
[367447794,1750800653987,-460.0,0.00017808,2]
[367447796,1750800653996,-460.0,0.00017808,2]
[367447798,1750800654005,-460.0,0.00017808,2]
[367447800,1750800654015,-469.34,0.00017808,2]
[367447802,1750800654024,-460.0,0.00017808,2]
[367447804,1750800654033,-1005.1,0.00017808,2]
[367447806,1750800654042,-864.57,0.00017808,2]
[367447808,1750800654051,-1059.31,0.00017808,2]
[367447810,1750800654060,-460.0,0.00017808,2]
[367447812,1750800654070,-460.0,0.00017808,2]
[367447814,1750800654079,-460.0,0.00017808,2]
[367447816,1750800654088,-460.0,0.00017808,2]
[367447818,1750800654098,-460.0,0.00017808,2]
[367447820,1750800654107,-189.248367,0.00017863,2]
[367447822,1750800654116,-226.515972,0.00017863,2]
[367447824,1750800654125,-236.809024,0.00017863,2]
[367447826,1750800654134,-236.8090306,0.00017863,2]
[367447828,1750800654143,-574.8597778,0.00017863,2]
[367447830,1750800654152,-574.8597778,0.00017863,2]
[367447833,1750800654172,-338.4562606,0.00017863,2]
[367447835,1750800654182,-574.8597778,0.00017863,2]
[367447837,1750800654192,-168.0,0.00017883,2]
[367447839,1750800654202,-500.0,0.000179,2]
[367447841,1750800654211,-588.0,0.00017944,2]
[367447843,1750800654221,-588.0,0.00017954,2]
[367447845,1750800654231,-420.0,0.00017962,2]
[367447847,1750800654241,-420.0,0.00017962,2]
[367447849,1750800654250,-1500.0,0.00017986,2]
[367447851,1750800654260,-600.000001,0.0001799,2]
[367447853,1750800654270,-914.48780643,0.00018,2]
[367447855,1750800654279,-387.19,0.00018082,2]
[367447857,1750800654290,-460.0,0.00018082,2]
[367447859,1750800654300,-460.0,0.00018082,2]
[367447861,1750800654310,-553.65688001,0.00018082,2]
[367447863,1750800654320,-293.69,0.00018082,2]
[367447865,1750800654330,-672.59,0.00018082,2]
[367447867,1750800654340,-440.41,0.00018082,2]
[367447869,1750800654350,-794.1,0.00018082,2]
[367447871,1750800654359,-2142.64,0.00018082,2]
[367447873,1750800654369,-460.0,0.00018082,2]
[367447875,1750800654379,-460.0,0.00018082,2]
[367447877,1750800654388,-460.0,0.00018082,2]
[367447879,1750800654398,-994.44,0.00018082,2]
[367447881,1750800654408,-460.0,0.00018082,2]
[367447883,1750800654417,-460.0,0.00018082,2]
[367447885,1750800654427,-1050.8,0.00018082,2]
[367447887,1750800654436,-460.0,0.00018082,2]
[367447889,1750800654446,-540.57,0.00018082,2]
[367447891,1750800654456,-460.0,0.00018082,2]
[367447893,1750800654466,-848.23,0.00018082,2]
[367447895,1750800654475,-620.12,0.00018082,2]
[367447897,1750800654485,-460.0,0.00018082,2]
[367447900,1750800654495,-845.1,0.00018082,2]
[367447902,1750800654505,-460.0,0.00018082,2]
[367447904,1750800654515,-460.0,0.00018082,2]
[367447906,1750800654525,-460.0,0.00018082,2]
[367447908,1750800654535,-460.0,0.00018082,2]
[367447910,1750800654544,-998.73,0.00018082,2]
[367447912,1750800654554,-609.96,0.00018082,2]
[367447914,1750800654563,-460.0,0.00018082,2]
[367447916,1750800654574,-469.34,0.00018082,2]
[367447918,1750800654583,-460.0,0.00018082,2]
[367447920,1750800654593,-1005.1,0.00018082,2]
[367447922,1750800654602,-864.57,0.00018082,2]
[367447924,1750800654612,-1059.31,0.00018082,2]
[367447926,1750800654622,-460.0,0.00018082,2]
[367447928,1750800654632,-460.0,0.00018082,2]
[367447930,1750800654641,-460.0,0.00018082,2]
[367447932,1750800654650,-460.0,0.00018082,2]
[367447934,1750800654660,-2000.0,0.00018116,2]
[367447936,1750800654670,-588.0,0.00018138,2]
[367447938,1750800654680,-642.0,0.00018183,2]
[367447940,1750800654690,-642.0,0.00018195,2]
[367447942,1750800654699,-1000.0,0.000182,2]
[367447944,1750800654709,-588.0,0.00018247,2]
[367447946,1750800654719,-151.0,0.00018356,2]
[367447948,1750800654729,-460.0,0.00018356,2]
[367447950,1750800654740,-672.59,0.00018356,2]
[367447952,1750800654751,-794.1,0.00018356,2]
[367447954,1750800654761,-2142.64,0.00018356,2]
[367447956,1750800654770,-460.0,0.00018356,2]
[367447958,1750800654780,-460.0,0.00018356,2]
[367447960,1750800654791,-994.44,0.00018356,2]
[367447962,1750800654800,-460.0,0.00018356,2]
[367447964,1750800654810,-460.0,0.00018356,2]
[367447966,1750800654821,-1050.8,0.00018356,2]
[367447968,1750800654831,-291.16,0.00018356,2]
[367447970,1750800654841,-540.57,0.00018356,2]
[367447972,1750800654850,-848.23,0.00018356,2]
[367447974,1750800654860,-620.12,0.00018356,2]
[367447976,1750800654870,-845.1,0.00018356,2]
[367447978,1750800654879,-582.85,0.00018356,2]
[367447980,1750800654889,-460.0,0.00018356,2]
[367447982,1750800654899,-460.0,0.00018356,2]
[367447984,1750800654908,-998.73,0.00018356,2]
[367447986,1750800654918,-159.07,0.00018356,2]
[367447988,1750800654927,-469.34,0.00018356,2]
[367447990,1750800654937,-460.0,0.00018356,2]
[367447992,1750800654948,-1005.1,0.00018356,2]
[367447994,1750800654957,-864.57,0.00018356,2]
[367447996,1750800654967,-1059.31,0.00018356,2]
[367447998,1750800654977,-555.65,0.00018356,2]
[367447999,1750800654987,-238.3,0.00018356,2]
[367448000,1750800654996,-460.0,0.00018356,2]
[367448001,1750800655006,-460.0,0.00018356,2]
[367448002,1750800655015,-642.0,0.00018519,2]
[367448003,1750800655024,-2000.0,0.00018534,2]
[367448004,1750800655033,-1000.0,0.0001858,2]
[367448005,1750800655043,-189.248367,0.0001863,2]
[367448006,1750800655052,-189.248367,0.0001863,2]
[367448007,1750800655062,-460.0,0.0001863,2]
[367448008,1750800655072,-672.59,0.0001863,2]
[367448009,1750800655082,-794.1,0.0001863,2]
[367448010,1750800655092,-2142.64,0.0001863,2]
[367448011,1750800655102,-460.0,0.0001863,2]
[367448012,1750800655111,-460.0,0.0001863,2]
[367448013,1750800655120,-994.44,0.0001863,2]
[367448014,1750800655130,-460.0,0.0001863,2]
[367448015,1750800655140,-460.0,0.0001863,2]
[367448016,1750800655150,-1050.8,0.0001863,2]
[367448017,1750800655160,-540.57,0.0001863,2]
[367448018,1750800655170,-848.23,0.0001863,2]
[367448019,1750800655180,-620.12,0.0001863,2]
[367448020,1750800655190,-845.1,0.0001863,2]
[367448021,1750800655199,-455.49,0.0001863,2]
[367448022,1750800655209,-460.0,0.0001863,2]
[367448023,1750800655218,-998.73,0.0001863,2]
[367448024,1750800655232,-469.34,0.0001863,2]
[367448025,1750800655242,-460.0,0.0001863,2]
[367448026,1750800655253,-1005.1,0.0001863,2]
[367448027,1750800655263,-864.57,0.0001863,2]
[367448029,1750800655273,-1059.31,0.0001863,2]
[367448031,1750800655283,-428.64,0.0001863,2]
[367448033,1750800655293,-460.0,0.0001863,2]
[367448035,1750800655302,-642.0,0.00018636,2]
[367448037,1750800655312,-642.0,0.00018659,2]
[367448039,1750800655323,-2500.0,0.00018664,2]
[367448041,1750800655332,-500.0,0.00018794,2]
[367448043,1750800655343,-179.91004498,0.0001888,2]
[367448045,1750800655352,-654.0,0.00018896,2]
[367448047,1750800655362,-2160.0,0.00018896,2]
[367448049,1750800655371,-406.0,0.00018896,2]
[367448051,1750800655380,-335.06275053,0.000189,2]
[367448054,1750800655390,-188.483717,0.00018904,2]
[367448056,1750800655401,-460.0,0.00018904,2]
[367448058,1750800655411,-672.59,0.00018904,2]
[367448060,1750800655421,-794.1,0.00018904,2]
[367448061,1750800655431,-2142.64,0.00018904,2]
[367448063,1750800655440,-460.0,0.00018904,2]
[367448066,1750800655450,-460.0,0.00018904,2]
[367448068,1750800655460,-994.44,0.00018904,2]
[367448070,1750800655470,-460.0,0.00018904,2]
[367448072,1750800655480,-460.0,0.00018904,2]
[367448074,1750800655489,-1050.8,0.00018904,2]
[367448076,1750800655499,-540.57,0.00018904,2]
[367448077,1750800655509,-848.23,0.00018904,2]
[367448079,1750800655518,-620.12,0.00018904,2]
[367448081,1750800655528,-845.1,0.00018904,2]
[367448084,1750800655539,-597.4,0.00018904,2]
[367448086,1750800655549,-998.73,0.00018904,2]
[367448088,1750800655559,-469.34,0.00018904,2]
[367448090,1750800655569,-460.0,0.00018904,2]
[367448092,1750800655579,-1005.1,0.00018904,2]
[367448094,1750800655590,-864.57,0.00018904,2]
[367448096,1750800655600,-1059.31,0.00018904,2]
[367448098,1750800655609,-460.0,0.00018904,2]
[367448100,1750800655619,-999.035852,0.00018913,2]
[367448102,1750800655629,-642.0,0.00018933,2]
[367448104,1750800655639,-153.0,0.00018959,2]
[367448106,1750800655648,-153.0,0.00018959,2]
[367448108,1750800655658,-153.0,0.00018959,2]
[367448110,1750800655668,-153.0,0.00018959,2]
[367448112,1750800655677,-153.0,0.00018959,2]
[367448114,1750800655688,-153.0,0.00018959,2]
[367448116,1750800655697,-153.0,0.00018959,2]
[367448118,1750800655708,-306.0,0.00018959,2]
[367448120,1750800655718,-153.0,0.00018959,2]
[367448122,1750800655727,-153.0,0.00018959,2]
[367448124,1750800655738,-153.0,0.00018959,2]
[367448126,1750800655750,-153.0,0.00018959,2]
[367448128,1750800655759,-153.0,0.00018959,2]
[367448130,1750800655768,-153.0,0.00018959,2]
[367448132,1750800655778,-313.8028555,0.00018959,2]
[367448134,1750800655788,-858.4,0.00018978,2]
[367448136,1750800655798,-150.0,0.00019047,2]
[367448138,1750800655807,-150.0,0.00019047,2]
[367448140,1750800655817,-1000.000001,0.0001905,2]
[367448142,1750800655827,-642.0,0.00019052,2]
[367448144,1750800655837,-2500.0,0.00019082,2]
[367448146,1750800655846,-858.4,0.00019144,2]
[367448148,1750800655856,-500.0,0.00019178,2]
[367448150,1750800655865,-580.92876439,0.00019178,2]
[367448152,1750800655875,-500.0,0.00019178,2]
[367448154,1750800655884,-500.0,0.00019178,2]
[367448156,1750800655893,-500.0,0.00019178,2]
[367448158,1750800655903,-500.0,0.00019178,2]
[367448160,1750800655913,-319.95470433,0.00019178,2]
[367448162,1750800655922,-223.96829303,0.00019178,2]
[367448164,1750800655933,-189.248367,0.00019178,2]
[367448166,1750800655943,-189.248367,0.00019178,2]
[367448168,1750800655953,-300.0,0.00019178,2]
[367448170,1750800655962,-280.06054644,0.00019178,2]
[367448172,1750800655972,-460.0,0.00019178,2]
[367448174,1750800655981,-672.59,0.00019178,2]
[367448176,1750800655991,-794.1,0.00019178,2]
[367448178,1750800656000,-2142.64,0.00019178,2]
[367448180,1750800656010,-460.0,0.00019178,2]
[367448182,1750800656019,-460.0,0.00019178,2]
[367448184,1750800656029,-994.44,0.00019178,2]
[367448186,1750800656039,-265.58,0.00019178,2]
[367448188,1750800656049,-460.0,0.00019178,2]
[367448190,1750800656058,-1050.8,0.00019178,2]
[367448192,1750800656068,-540.57,0.00019178,2]
[367448194,1750800656077,-848.23,0.00019178,2]
[367448196,1750800656087,-620.12,0.00019178,2]
[367448198,1750800656096,-845.1,0.00019178,2]
[367448200,1750800656106,-998.73,0.00019178,2]
[367448202,1750800656115,-469.34,0.00019178,2]
[367448204,1750800656125,-460.0,0.00019178,2]
[367448206,1750800656136,-1005.1,0.00019178,2]
[367448208,1750800656147,-864.57,0.00019178,2]
[367448211,1750800656157,-1059.31,0.00019178,2]
[367448213,1750800656167,-645.348094,0.00019178,2]
[367448215,1750800656176,-189.248367,0.000192,2]
[367448216,1750800656186,-189.248367,0.000192,2]
[367448218,1750800656195,-189.248367,0.000192,2]
[367448220,1750800656205,-189.248367,0.000192,2]
[367448222,1750800656215,-189.248367,0.000192,2]
[367448225,1750800656227,-189.248375,0.000192,2]
[367448227,1750800656237,-18989.2324604,0.000192,2]
[367448228,1750800656246,-18989.23246013,0.000192,2]
[367448230,1750800656256,-18989.23246013,0.000192,2]
[367448232,1750800656265,-18989.23246013,0.000192,2]
[367448235,1750800656275,-18989.23246013,0.000192,2]
[367448236,1750800656284,-18989.23246013,0.000192,2]
[367448238,1750800656294,-18989.23246013,0.000192,2]
[367448241,1750800656304,-3000.0,0.00019212,2]
[367448243,1750800656313,-207.4,0.00019289,2]
[367448245,1750800656323,-424.70155808,0.000193,2]
[367448246,1750800656332,-1500.0,0.000193,7]
[367448249,1750800656342,-1500.0,0.000193,7]
[367448251,1750800656354,-1500.0,0.000193,7]
[367448253,1750800656363,-1500.0,0.000193,7]
[367448254,1750800656372,-1500.0,0.000193,7]
[367448256,1750800656382,-1500.0,0.000193,7]
[367448259,1750800656392,-1500.0,0.000193,7]
[367448261,1750800656402,-1500.0,0.000193,7]
[367448263,1750800656412,-1500.0,0.000193,7]
[367448265,1750800656421,-1500.0,0.000193,7]
[367448267,1750800656431,-1500.0,0.000193,7]
[367448286,1750800656604,-524.15841286,0.000193,7]
[367448288,1750800656614,-12556.00642039,0.000193,7]
[367448290,1750800656624,-846.68469334,0.000193,7]
[367448292,1750800656633,-213.66798275,0.000193,7]
[367448294,1750800656642,-858.4,0.0001931,2]
[367448296,1750800656652,-36254.80209242,0.00019329,2]
[367448331,1750800656983,-320.529606,0.00016438,2]
[367448333,1750800656993,-320.529606,0.00016438,2]
[367448335,1750800657002,-70.59931,0.00016438,2]
[367448337,1750800657014,-389.40069,0.00016438,2]
[367448339,1750800657023,-460.0,0.00016438,2]
[367448341,1750800657032,-320.529606,0.00016712,2]
[367448343,1750800657042,-460.0,0.00016712,2]
[367448345,1750800657052,-320.529606,0.00016712,2]
[367448347,1750800657061,-258.90736207,0.00016986,2]
[367448350,1750800657077,-320.529606,0.00016712,2]
[367448352,1750800657086,-201.09263793,0.00016986,2]
[367448354,1750800657095,-460.0,0.0001726,2]
[367448356,1750800657104,-460.0,0.0001726,2]
[367448358,1750800657114,-460.0,0.00017534,2]
[367448360,1750800657123,-460.0,0.00017808,2]
[367448362,1750800657131,-460.0,0.00018082,2]
[367448364,1750800657141,-460.0,0.00019178,2]
[367448366,1750800657149,-822.33320691,0.00019329,2]
[367448397,1750800657438,-164.9434194,0.00016338,2]
[367448399,1750800657447,-460.0,0.00016438,2]
[367448401,1750800657457,-460.0,0.00016438,2]
[367448403,1750800657466,-460.0,0.00016438,2]
[367448405,1750800657476,-460.0,0.00016712,2]
[367448407,1750800657485,-460.0,0.00016712,2]
[367448409,1750800657495,-320.529606,0.00016986,2]
[367448411,1750800657504,-320.529606,0.00016986,2]
[367448413,1750800657514,-460.0,0.00016986,2]
[367448415,1750800657523,-460.0,0.00016986,2]
[367448417,1750800657533,-267.82242798,0.0001726,2]
[367448426,1750800657645,-406.0,0.00016438,2]
[367448427,1750800657657,-54.0,0.00016438,2]
[367448428,1750800657667,-460.0,0.00016438,2]
[367448429,1750800657676,-574.8597778,0.000171,2]
[367448431,1750800657685,-52.70717802,0.0001726,2]
[367448433,1750800657695,-320.529597,0.00017534,2]
[367448435,1750800657705,-965.0,0.00018896,2]
[367448437,1750800657714,-14.00344718,0.00019329,2]
[367448712,1750800691385,1500.0,0.00018082,7]
[367448713,1750800691694,1500.0,0.00018082,7]
[367448714,1750800691994,1500.0,0.00018082,7]
[367448715,1750800692367,1500.0,0.00018082,7]
[367448716,1750800692662,1500.0,0.00018082,7]
[367448717,1750800692957,1500.0,0.00018082,7]
[367448718,1750800693290,1500.0,0.00018082,7]
[367448719,1750800693598,1500.0,0.00018082,7]
[367448720,1750800693913,1500.0,0.00018082,7]
[367448721,1750800694216,1500.0,0.00018082,7]
[367448722,1750800694512,1500.0,0.00018082,7]
[367448723,1750800694814,1500.0,0.00018082,7]
[367448724,1750800695717,1500.0,0.00018082,7]
[367448725,1750800696016,1500.0,0.00018082,7]
[367448726,1750800696354,1500.0,0.00018082,7]
[367448727,1750800696655,1500.0,0.00018082,7]
[367448728,1750800696955,1500.0,0.00018082,7]
[367448729,1750800697825,1500.0,0.00018082,7]
[367448730,1750800698131,1500.0,0.00018082,7]
[367448731,1750800698424,1500.0,0.00018082,7]
[367448732,1750800698713,1500.0,0.00018082,7]
[367448733,1750800699002,1500.0,0.00018082,7]
[367448734,1750800699327,1500.0,0.00018082,7]
[367448735,1750800699658,1500.0,0.00018082,7]
[367448736,1750800699964,1500.0,0.00018082,7]
[367448737,1750800700278,1500.0,0.00018082,7]
[367448738,1750800700582,1500.0,0.00018082,7]
[367448739,1750800700882,1500.0,0.00018082,7]
[367448740,1750800701177,1500.0,0.00018082,7]
[367448741,1750800701467,1500.0,0.00018082,7]
[367448742,1750800702366,1500.0,0.00018082,7]
[367448743,1750800702656,1500.0,0.00018082,7]
[367448744,1750800703106,1500.0,0.00018082,7]
[367448745,1750800703263,1500.0,0.00018082,7]
[367448746,1750800703558,1500.0,0.00018082,7]
[367448747,1750800703844,1500.0,0.00018082,7]
[367448748,1750800704140,1500.0,0.00018082,7]
[367448749,1750800705083,1500.0,0.00018082,7]
[367448750,1750800705383,1500.0,0.00018082,7]
[367448751,1750800705766,1500.0,0.00018082,7]
[367448752,1750800706051,1500.0,0.00018082,7]
[367448753,1750800706357,1500.0,0.00018082,7]
[367448754,1750800706736,1500.0,0.00018082,7]
[367448755,1750800707038,1500.0,0.00018082,7]
[367448756,1750800707915,1500.0,0.00018082,7]
[367448757,1750800708219,1500.0,0.00018082,7]
[367448758,1750800708517,1500.0,0.00018082,7]
[367448759,1750800708818,1500.0,0.00018082,7]
[367448760,1750800709113,1500.0,0.00018082,7]
[367448761,1750800709427,1500.0,0.00018082,7]
[367448762,1750800709733,1500.0,0.00018082,7]
[367448763,1750800710026,1500.0,0.00018082,7]
[367448764,1750800710420,1500.0,0.00018082,7]
[367448765,1750800710806,1500.0,0.00018082,7]
[367448766,1750800711243,1500.0,0.00018082,7]
[367448767,1750800711540,1500.0,0.00018082,7]
[367448768,1750800711837,1500.0,0.00018082,7]
[367448769,1750800712135,1500.0,0.00018082,7]
[367448770,1750800712572,1500.0,0.00018082,7]
[367448771,1750800712897,1500.0,0.00018082,7]
[367448772,1750800713209,1500.0,0.00018082,7]
[367448773,1750800713503,1500.0,0.00018082,7]
[367448774,1750800713806,1325.14060195,0.00018082,7]
[367448775,1750800873083,-164.9434194,0.00016338,2]
[367448776,1750800873106,-5.56179294,0.00016338,2]
[367448779,1750800939413,222.71654103,0.00024657,120]
[367448783,1750801048070,10951.05017854,0.00015831,2]
[367448784,1750801048093,13948.94982146,0.00015831,2]
[367448786,1750801085616,182.1979162,0.00015831,2]
[367449569,1750801446959,578.903917,0.00013699,2]
[367449580,1750801476635,-663.0,0.00016337,2]
[367449581,1750801476661,-300.0,0.00016337,2]
[367449582,1750801476864,-300.0,0.00016337,2]
[367449583,1750801476892,-219.89494745,0.00016337,2]
[367449584,1750801476918,-164.9434194,0.00016338,2]
[367449585,1750801476944,-19829.53947785,0.00016338,2]
[367449586,1750801476969,-460.0,0.00016438,2]
[367449587,1750801476994,-152.531598,0.00016438,2]
[367449588,1750801477017,-460.0,0.00016438,2]
[367449589,1750801477042,-460.0,0.00016438,2]
[367449590,1750801477069,-400.0,0.00016438,2]
[367449591,1750801477095,-460.0,0.00016438,2]
[367449592,1750801477122,-460.0,0.00016438,2]
[367449593,1750801477144,-460.0,0.00016438,2]
[367449594,1750801477170,-460.0,0.00016438,2]
[367449595,1750801477196,-460.0,0.00016438,2]
[367449596,1750801477221,-460.0,0.00016438,2]
[367449597,1750801477245,-351.01443006,0.00016438,2]
[367449598,1750801477269,-460.0,0.00016438,2]
[367449599,1750801477292,-460.0,0.00016438,2]
[367449600,1750801477315,-460.0,0.00016438,2]
[367449601,1750801477337,-151.0,0.00016438,2]
[367449602,1750801477359,-151.0,0.00016438,2]
[367449603,1750801477383,-151.0,0.00016438,2]
[367449604,1750801477407,-151.0,0.00016438,2]
[367449605,1750801477431,-463.44550028,0.00016438,2]
[367449606,1750801477454,-348.44953571,0.00016438,2]
[367449607,1750801477479,-460.0,0.00016438,2]
[367449608,1750801477503,-460.0,0.00016438,2]
[367449609,1750801477526,-460.0,0.00016438,2]
[367449610,1750801477550,-460.0,0.00016438,2]
[367449611,1750801477574,-460.0,0.00016438,2]
[367449612,1750801477598,-460.0,0.00016438,2]
[367449613,1750801477623,-460.0,0.00016438,2]
[367449614,1750801477647,-460.0,0.00016438,2]
[367449615,1750801477673,-460.0,0.00016438,2]
[367449616,1750801477697,-460.0,0.00016438,2]
[367449617,1750801477725,-460.0,0.00016438,2]
[367449618,1750801477749,-460.0,0.00016438,2]
[367449619,1750801477775,-548.12663295,0.00016438,2]
[367449620,1750801477799,-460.0,0.00016438,2]
[367449621,1750801477824,-460.0,0.00016438,2]
[367449622,1750801477849,-460.0,0.00016438,2]
[367449623,1750801477873,-460.0,0.00016438,2]
[367449624,1750801477896,-460.0,0.00016438,2]
[367449625,1750801477920,-460.0,0.00016438,2]
[367449626,1750801477943,-460.0,0.00016438,2]
[367449627,1750801477967,-460.0,0.00016438,2]
[367449628,1750801477991,-460.0,0.00016438,2]
[367449629,1750801478014,-460.0,0.00016438,2]
[367449630,1750801478038,-460.0,0.00016438,2]
[367449631,1750801478061,-290.92672165,0.00016438,2]
[367449632,1750801478085,-212.025254,0.00016438,2]
[367449633,1750801478111,-212.025254,0.00016438,2]
[367449634,1750801478134,-212.025254,0.00016438,2]
[367449635,1750801478157,-460.0,0.00016438,2]
[367449636,1750801478180,-460.0,0.00016438,2]
[367449637,1750801478201,-212.025254,0.00016438,2]
[367449638,1750801478221,-212.025254,0.00016438,2]
[367449639,1750801478242,-212.025254,0.00016438,2]
[367449640,1750801478266,-460.0,0.00016438,2]
[367449641,1750801478290,-547.78707595,0.00016438,2]
[367449642,1750801478314,-432.94515881,0.00016438,2]
[367449643,1750801478338,-460.0,0.00016438,2]